bitfinex/quotes_BTCUSD_20251015
["timestamp","ask_amount","ask_price","bid_price","bid_amount"]
[1760564043993,2.79453236,111310.0,111300.0,0.08973512]
[1760564044202,2.79453236,111310.0,111300.0,0.20325512]
[1760564044334,2.32195447,111310.0,111300.0,0.20325512]
[1760564044556,2.79453236,111310.0,111300.0,0.20325512]
[1760564045417,2.71403496,111310.0,111300.0,0.20325512]
[1760564046079,2.71403496,111310.0,111300.0,0.08973512]
[1760564046309,2.65738313,111310.0,111300.0,0.20325512]
[1760564047458,2.46628803,111310.0,111300.0,0.20325512]
[1760564047978,2.6459664,111310.0,111300.0,0.20325512]
[1760564048682,2.22995843,111310.0,111300.0,0.20325512]
[1760564048897,3.06197437,111310.0,111300.0,0.20325512]
[1760564050947,3.40197437,111310.0,111300.0,0.113565]
[1760564051098,4.02688251,111310.0,111300.0,4.5e-05]
[1760564051314,2.21071996,111270.0,111260.0,0.0717521]
[1760564051535,2.62672793,111270.0,111260.0,0.16144222]
[1760564051898,2.62672793,111270.0,111260.0,0.20317012]
[1760564052324,3.0427359,111270.0,111260.0,0.08969012]
[1760564052531,3.0427359,111270.0,111260.0,0.11398058]
[1760564052735,3.06213908,111270.0,111260.0,0.11398058]
[1760564052975,3.06213908,111270.0,111260.0,0.00050058]
[1760564053344,3.09902134,111270.0,111260.0,0.11398058]
[1760564054161,3.51502931,111270.0,111260.0,0.00050058]
[1760564055574,2.99925207,111270.0,111260.0,0.00050058]
[1760564057468,2.97984889,111270.0,111260.0,0.00050058]
[1760564057677,2.9991849,111270.0,111260.0,0.00050058]
[1760564058039,2.97984889,111270.0,111260.0,0.00050058]
[1760564058399,2.97984889,111270.0,111260.0,0.11398058]
[1760564059850,2.99917472,111270.0,111260.0,0.11398058]
[1760564060273,2.97984889,111270.0,111260.0,0.00050058]
[1760564063060,3.31984889,111270.0,111260.0,0.00050058]
[1760564064420,2.40785926,111270.0,111260.0,0.0901907]
[1760564064656,0.1,111270.0,111260.0,0.10816661]
[1760564065301,0.1,111270.0,111260.0,0.65167391]
[1760564065506,0.1,111270.0,111260.0,1.433698]
[1760564065705,0.1,111270.0,111260.0,1.547178]
[1760564065917,0.1,111270.0,111260.0,1.50983977]
[1760564066136,0.1,111270.0,111260.0,1.39635977]
[1760564066373,0.1,111270.0,111260.0,1.50983977]
[1760564067108,2.31071996,111270.0,111260.0,1.0036707]
[1760564067320,3.38296663,111270.0,111260.0,0.2036707]
[1760564067755,3.38296663,111270.0,111260.0,0.2037507]
[1760564068814,2.65071996,111270.0,111260.0,0.2037507]
[1760564069011,0.44,111270.0,111260.0,0.2037507]
[1760564069456,0.61974296,111270.0,111260.0,0.0901907]
[1760564069660,0.44,111270.0,111260.0,0.2037507]
[1760564069939,0.1,111270.0,111260.0,0.2037507]
[1760564070121,0.1,111270.0,111260.0,1.0037907]
[1760564070326,0.1,111270.0,111260.0,1.39635977]
[1760564070541,0.1,111270.0,111260.0,1.50995977]
[1760564070910,0.1,111270.0,111260.0,1.39635977]
[1760564071116,0.1,111270.0,111260.0,1.50995977]
[1760564071800,0.1,111270.0,111260.0,1.39635977]
[1760564072001,0.1,111270.0,111260.0,1.50995977]
[1760564072200,0.1,111270.0,111260.0,1.50991977]
[1760564072409,0.1,111270.0,111260.0,1.39635977]
[1760564072619,0.1,111270.0,111260.0,1.66991977]
[1760564073014,0.1,111270.0,111260.0,1.50991977]
[1760564074228,0.1,111270.0,111260.0,1.39635977]
[1760564074438,0.1,111270.0,111260.0,1.50991977]
[1760564075060,0.1,111270.0,111260.0,1.39635977]
[1760564075274,0.1,111270.0,111260.0,1.50991977]
[1760564075523,0.1,111270.0,111260.0,1.56387977]
[1760564075736,0.1,111270.0,111260.0,1.45031977]
[1760564075935,0.1,111270.0,111260.0,1.56387977]
[1760564076151,0.1,111270.0,111260.0,1.56383977]
[1760564076585,0.1,111270.0,111260.0,1.45031977]
[1760564076838,0.1,111270.0,111260.0,1.56383977]
[1760564080012,0.1,111270.0,111260.0,1.45331977]
[1760564080231,0.1,111270.0,111260.0,1.56683977]
[1760564080443,0.1,111270.0,111260.0,1.56679977]
[1760564081318,0.1,111270.0,111260.0,2.51498784]
[1760564081567,0.1,111270.0,111260.0,2.40150784]
[1760564081568,0.07077473,111270.0,111260.0,2.40150784]
[1760564081779,0.07077473,111270.0,111260.0,1.89533877]
[1760564082008,0.07077473,111270.0,111260.0,2.00885877]
[1760564082676,0.07077473,111270.0,111260.0,1.89533877]
[1760564082809,0.07077473,111270.0,111260.0,2.00885877]
[1760564083228,0.07077473,111270.0,111260.0,1.89533877]
[1760564083401,0.07077473,111270.0,111260.0,2.00885877]
[1760564085634,0.07077473,111270.0,111260.0,2.34885877]
[1760564085947,0.07077473,111270.0,111260.0,2.34881877]
[1760564086551,0.07077473,111270.0,111260.0,2.23533877]
[1760564086767,0.07077473,111270.0,111260.0,2.34881877]
[1760564087606,1e-08,111270.0,111260.0,2.34881877]
[1760564087817,0.0717521,111310.0,111300.0,1.75587679]
[1760564088031,0.0717521,111310.0,111300.0,3.20046265]
[1760564088255,0.00058629,111320.0,111310.0,0.21586065]
[1760564088470,0.00058629,111320.0,111310.0,1.49127744]
[1760564088928,0.00058629,111320.0,111310.0,1.37779744]
[1760564089366,0.00058629,111320.0,111310.0,1.49127744]
[1760564089598,0.00058629,111320.0,111310.0,1.52777883]
[1760564089799,0.00058629,111320.0,111310.0,1.41429883]
[1760564090015,0.00058629,111320.0,111310.0,1.52777883]
[1760564093884,0.00058629,111320.0,111310.0,1.52773883]
[1760564094089,0.00058629,111320.0,111310.0,1.41429883]
[1760564094312,0.00058629,111320.0,111310.0,1.68773883]
[1760564094514,0.00058629,111320.0,111310.0,1.70894787]
[1760564094733,0.00058629,111320.0,111310.0,0.62919151]
[1760564094942,0.00058629,111320.0,111310.0,0.65269012]
[1760564095354,0.00058629,111320.0,111310.0,0.94661012]
[1760564095773,0.00058629,111320.0,111310.0,1.06005012]
[1760564096178,0.00058629,111320.0,111310.0,0.94661012]
[1760564096377,0.00058629,111320.0,111310.0,1.06005012]
[1760564097048,0.03699955,111320.0,111310.0,1.06005012]
[1760564097221,0.00058629,111320.0,111310.0,1.06005012]
[1760564097815,0.00058629,111320.0,111310.0,1.27591077]
[1760564098022,0.00058629,111320.0,111310.0,1.61591077]
[1760564098229,0.00058629,111320.0,111310.0,2.37514094]
[1760564098903,0.00058629,111320.0,111310.0,2.44214935]
[1760564099447,0.00058629,111320.0,111310.0,2.60214935]
[1760564099642,0.00058629,111320.0,111310.0,2.62494173]
[1760564101882,0.51984706,111380.0,111360.0,0.8]
[1760564101883,2.030977,111370.0,111360.0,0.8]
[1760564102075,0.00015005,111370.0,111360.0,1.00337012]
[1760564103043,0.00015005,111370.0,111360.0,1.50953919]
[1760564104254,0.00015005,111370.0,111360.0,1.39585919]
[1760564104460,0.00015005,111370.0,111360.0,1.50949919]
[1760564104836,0.00015005,111370.0,111360.0,1.56341919]
[1760564106954,0.17979823,111400.0,111360.0,1.56341919]
[1760564106955,0.0002,111400.0,111390.0,0.8]
[1760564107155,0.0002,111400.0,111390.0,1.62222173]
[1760564107331,0.0002,111400.0,111390.0,2.6944684]
[1760564107532,0.0002,111410.0,111390.0,2.6944684]
[1760564107533,0.0002,111410.0,111390.0,2.6914684]
[1760564107733,0.00034994,111410.0,111400.0,1.30891548]
[1760564107957,0.00034994,111410.0,111400.0,1.88682135]
[1760564108170,0.0002,111420.0,111410.0,1.41569937]
[1760564108378,0.0002,111440.0,111420.0,0.55568326]
[1760564108593,5.73e-05,111470.0,111460.0,1.2]
[1760564108797,0.00020717,111470.0,111460.0,1.91281919]
[1760564108998,0.00020717,111470.0,111460.0,2.82450242]
[1760564109213,0.00020717,111470.0,111460.0,2.64506586]
[1760564109463,0.00020717,111470.0,111460.0,1.00365012]
[1760564109464,2.03118417,111470.0,111460.0,1.00365012]
[1760564109871,2.21060464,111470.0,111460.0,1.00365012]
[1760564110300,3.28285131,111470.0,111460.0,0.08969012]
[1760564110744,3.28285131,111470.0,111460.0,0.11396]
[1760564110956,2.21044577,111440.0,111430.0,0.1256721]
[1760564111168,2.21044577,111440.0,111430.0,0.21536222]
[1760564111368,2.94269244,111440.0,111430.0,0.14361012]
[1760564111574,2.21044577,111440.0,111430.0,0.25757012]
[1760564111796,2.21044577,111440.0,111430.0,0.14361012]
[1760564112205,2.21044577,111440.0,111430.0,0.25757012]
[1760564112616,2.21044577,111440.0,111430.0,0.14361012]
[1760564112815,2.21044577,111440.0,111430.0,0.25757012]
[1760564114478,2.21044577,111440.0,111430.0,0.14361012]
[1760564114900,2.21747325,111440.0,111430.0,0.25753012]
[1760564115614,2.21747325,111440.0,111430.0,0.14361012]
[1760564115755,2.21747325,111440.0,111430.0,0.25753012]
[1760564116251,2.21747325,111440.0,111430.0,0.14361012]
[1760564116456,2.94971992,111440.0,111430.0,0.25753012]
[1760564117348,2.94971992,111440.0,111430.0,0.25749012]
[1760564117544,2.68909372,111440.0,111430.0,0.25749012]
[1760564118988,2.21747325,111440.0,111430.0,0.20357012]
[1760564119227,0.00702748,111440.0,111430.0,1.00377012]
[1760564119427,0.00702748,111440.0,111430.0,1.50993919]
[1760564121032,0.00702748,111440.0,111430.0,2.01774194]
[1760564121368,0.00702748,111440.0,111430.0,2.08774194]
[1760564121565,0.00702748,111440.0,111430.0,2.26722681]
[1760564123724,0.00702748,111440.0,111430.0,1.28774194]
[1760564123896,0.00702748,111440.0,111430.0,1.68774194]
[1760564124283,0.00702748,111440.0,111430.0,1.28774194]
[1760564124635,0.00702748,111440.0,111430.0,2.528585]
[1760564124866,0.00020717,111470.0,111460.0,1.88723931]
[1760564125032,0.00020717,111470.0,111460.0,2.6003385]
[1760564125238,0.00020717,111470.0,111460.0,2.4860985]
[1760564125564,0.00020717,111470.0,111460.0,2.6003385]
[1760564126425,4.99920717,111500.0,111490.0,0.8]
[1760564126632,4.99920717,111500.0,111490.0,1.00393012]
[1760564127787,4.99920717,111500.0,111490.0,1.00389012]
[1760564128349,4.99920717,111500.0,111490.0,1.00385012]
[1760564131926,7.68117683,111500.0,111490.0,0.20385012]
[1760564132124,8.02117683,111500.0,111490.0,0.08969012]
[1760564132376,8.0246868,111500.0,111490.0,0.11412]
[1760564132575,2.55038137,111480.0,111470.0,0.05388]
[1760564132777,3.02200184,111480.0,111470.0,0.25769012]
[1760564132962,2.55038137,111480.0,111470.0,0.14357012]
[1760564133167,3.02200184,111480.0,111470.0,0.25769012]
[1760564133968,2.55038137,111480.0,111470.0,0.25769012]
[1760564134259,3.02200184,111480.0,111470.0,0.25769012]
[1760564136134,3.02200184,111480.0,111470.0,0.168]
[1760564137778,3.02200184,111480.0,111470.0,0.25769012]
[1760564137986,2.030977,111490.0,111470.0,0.25769012]
[1760564138279,0.1793883,111490.0,111480.0,0.08969012]
[1760564138458,2.68198577,111490.0,111480.0,0.08969012]
[1760564138658,3.024911,111490.0,111480.0,0.08969012]
[1760564139486,2.55329053,111490.0,111480.0,0.08969012]
[1760564139949,3.024911,111490.0,111480.0,0.08969012]
[1760564140140,2.55329053,111490.0,111480.0,0.08969012]
[1760564140270,3.04416428,111490.0,111480.0,0.08969012]
[1760564145763,3.24416428,111490.0,111480.0,0.08969012]
[1760564146309,3.26844237,111490.0,111480.0,0.20381012]
[1760564146522,0.74156681,111490.0,111480.0,0.20381012]
[1760564146727,0.20292523,111490.0,111480.0,0.20381012]
[1760564146930,0.38231351,111490.0,111480.0,0.20381012]
[1760564147404,0.39068589,111490.0,111480.0,0.1979747]
[1760564147607,0.21129761,111490.0,111480.0,0.20305119]
[1760564147917,0.39068589,111490.0,111480.0,0.20305119]
[1760564148523,0.34146802,111490.0,111480.0,0.21142653]
[1760564148724,0.34146802,111490.0,111480.0,0.21218546]
[1760564148928,0.34146802,111490.0,111480.0,0.09806546]
[1760564149066,0.34146802,111490.0,111480.0,0.21218546]
[1760564149541,0.34146802,111490.0,111480.0,0.20381012]
[1760564149900,0.137883,111490.0,111480.0,0.20381012]
[1760564150151,0.137883,111490.0,111480.0,0.08969012]
[1760564150310,0.137883,111490.0,111480.0,0.20381012]
[1760564150716,0.137883,111490.0,111480.0,0.08969012]
[1760564150923,0.137883,111490.0,111480.0,0.20381012]
[1760564151763,2.030977,111490.0,111480.0,0.20381012]
[1760564152604,2.030977,111490.0,111480.0,0.20377012]
[1760564152807,0.17938828,111490.0,111480.0,0.20377012]
[1760564153016,5.65918268,111500.0,111480.0,0.20377012]
[1760564153223,5.99918268,111500.0,111490.0,0.10762894]
[1760564153844,5.52756221,111500.0,111490.0,0.10762894]
[1760564154044,5.31226471,111500.0,111490.0,0.10762894]
[1760564154664,5.78388518,111500.0,111490.0,0.10762894]
[1760564155099,5.44388518,111500.0,111490.0,0.10762894]
[1760564155445,4.97226471,111500.0,111490.0,0.10762894]
[1760564155648,5.44388518,111500.0,111490.0,0.10762894]
[1760564156050,5.44388518,111500.0,111490.0,0.20373012]
[1760564157443,5.44388518,111500.0,111490.0,0.20369012]
[1760564157704,7.47486218,111500.0,111490.0,0.20369012]
[1760564158314,7.47486218,111500.0,111490.0,0.08969012]
[1760564158524,7.47486218,111500.0,111490.0,0.20365012]
[1760564158910,7.47544705,111500.0,111490.0,0.20365012]
[1760564159135,7.47544705,111500.0,111490.0,0.08969012]
[1760564159669,7.47544705,111500.0,111490.0,0.20365012]
[1760564160422,4.77949454,111500.0,111490.0,0.20365012]
[1760564160622,4.77949454,111500.0,111490.0,0.60365012]
[1760564160830,4.95886673,111500.0,111490.0,0.60365012]
[1760564162155,4.95886673,111500.0,111490.0,0.48969012]
[1760564162353,4.95886673,111500.0,111490.0,0.60373012]
[1760564162784,4.95886673,111500.0,111490.0,0.48969012]
[1760564163188,4.95886673,111500.0,111490.0,0.60373012]
[1760564163809,4.95886673,111500.0,111490.0,1.10989919]
[1760564164232,4.95886673,111500.0,111490.0,0.99585919]
[1760564164546,4.95886673,111500.0,111490.0,1.10985919]
[1760564165169,7.4614642,111500.0,111490.0,0.60369012]
[1760564165717,7.4614642,111500.0,111490.0,0.48969012]
[1760564165913,7.4614642,111500.0,111490.0,0.60369012]
[1760564166975,7.4614642,111500.0,111490.0,0.48969012]
[1760564167111,7.4614642,111500.0,111490.0,0.60369012]
[1760564167529,6.98984373,111500.0,111490.0,0.48969012]
[1760564167742,7.4614642,111500.0,111490.0,0.60365012]
[1760564167962,7.4614642,111500.0,111490.0,0.60369012]
[1760564168661,7.4614642,111500.0,111490.0,0.48969012]
[1760564168870,7.4614642,111500.0,111490.0,0.60365012]
[1760564171884,7.4614642,111500.0,111490.0,0.60361012]
[1760564172723,7.4614642,111500.0,111490.0,0.48969012]
[1760564172873,7.4614642,111500.0,111490.0,0.60361012]
[1760564173053,7.23659023,111500.0,111490.0,0.60361012]
[1760564173252,7.23659023,111500.0,111490.0,0.48969012]
[1760564173457,7.23659023,111500.0,111490.0,0.60361012]
[1760564174120,7.23659023,111500.0,111490.0,0.48969012]
[1760564174337,7.23659023,111500.0,111490.0,0.60361012]
[1760564176640,7.57659023,111500.0,111490.0,0.20365012]
[1760564176840,7.57659023,111500.0,111490.0,0.11396]
[1760564177064,7.59595692,111500.0,111490.0,0.11396]
[1760564177410,0.17940437,111480.0,111470.0,0.05384]
[1760564177648,2.68200184,111480.0,111470.0,0.25749012]
[1760564177853,2.68200184,111480.0,111470.0,0.20365012]
[1760564178055,2.68200184,111480.0,111470.0,0.08969012]
[1760564178500,2.68200184,111480.0,111470.0,0.20361012]
[1760564178913,2.68200184,111480.0,111470.0,0.08969012]
[1760564179116,2.68200184,111480.0,111470.0,0.20361012]
[1760564179341,3.49362231,111480.0,111470.0,0.11392]
[1760564179539,0.17943656,111460.0,111450.0,0.50616907]
[1760564179794,0.17943656,111460.0,111450.0,0.70992906]
[1760564180134,0.90882369,111460.0,111450.0,0.59600906]
[1760564180330,0.90882369,111460.0,111450.0,0.70992906]
[1760564180908,2.93980069,111460.0,111450.0,0.70992906]
[1760564181122,2.93980069,111460.0,111450.0,0.20375999]
[1760564181397,2.93980069,111460.0,111450.0,0.08983999]
[1760564181578,2.97080283,111460.0,111450.0,0.20375999]
[1760564182590,2.97080283,111460.0,111450.0,0.00014987]
[1760564183005,2.97080283,111460.0,111450.0,0.11406987]
[1760564183392,2.97080283,111460.0,111450.0,0.00014987]
[1760564183593,2.97080283,111460.0,111450.0,0.11406987]
[1760564184158,3.33010792,111460.0,111450.0,0.11406987]
[1760564184377,3.31080283,111460.0,111450.0,0.11406987]
[1760564184587,2.5814157,111460.0,111450.0,0.11406987]
[1760564184990,2.5814157,111460.0,111450.0,0.08983999]
[1760564185277,2.06197914,111460.0,111450.0,0.20379999]
[1760564185429,2.2414157,111460.0,111450.0,0.20379999]
[1760564185644,2.2414157,111460.0,111450.0,0.20383999]
[1760564186214,2.2414157,111460.0,111450.0,0.20379999]
[1760564186437,2.2414157,111460.0,111410.0,1.20113923]
[1760564186438,2.030977,111420.0,111410.0,0.0717521]
[1760564186641,0.17950098,111420.0,111410.0,0.6759019]
[1760564186809,0.17950098,111420.0,111410.0,0.6759819]
[1760564187034,0.17950098,111420.0,111410.0,0.6042298]
[1760564188629,0.17950098,111420.0,111410.0,0.6041898]
[1760564189435,0.17950098,111420.0,111410.0,0.4901898]
[1760564189636,0.17950098,111420.0,111410.0,0.6041898]
[1760564190428,0.17945298,111450.0,111410.0,1.4041898]
[1760564190572,0.17945298,111450.0,111430.0,0.88969012]
[1760564190573,0.18842561,111450.0,111430.0,0.88969012]
[1760564190911,0.17946877,111440.0,111430.0,0.88969012]
[1760564191159,0.18842561,111450.0,111430.0,1.00381012]
[1760564191299,0.17945266,111450.0,111440.0,0.13206687]
[1760564191526,0.17945266,111450.0,111440.0,0.22175699]
[1760564191717,0.17945266,111450.0,111440.0,0.20381012]
[1760564193689,0.17945266,111450.0,111440.0,0.08969012]
[1760564193920,0.17945266,111450.0,111440.0,0.22175699]
[1760564194055,0.17945266,111450.0,111440.0,0.20377012]
[1760564194468,0.17945266,111450.0,111440.0,0.08969012]
[1760564194651,0.17945266,111450.0,111440.0,0.22171699]
[1760564194854,0.17945266,111450.0,111440.0,0.20377012]
[1760564196325,0.17945266,111450.0,111440.0,0.08969012]
[1760564196535,0.17945266,111450.0,111440.0,0.22167699]
[1760564196727,0.17945266,111450.0,111440.0,0.20373012]
[1760564196942,0.17945266,111450.0,111440.0,0.08969012]
[1760564197111,0.17945266,111450.0,111440.0,0.22167699]
[1760564197322,0.17945266,111450.0,111440.0,0.20373012]
[1760564197507,0.17945266,111450.0,111440.0,0.08969012]
[1760564197881,0.17945266,111450.0,111440.0,0.22167699]
[1760564198098,0.17945266,111450.0,111440.0,0.20373012]
[1760564201287,0.17945266,111450.0,111440.0,0.20365012]
[1760564201492,0.17945266,111450.0,111440.0,0.08969012]
[1760564201695,0.17945266,111450.0,111440.0,0.22159699]
[1760564201914,0.17945266,111450.0,111440.0,0.20365012]
[1760564204492,0.17945266,111450.0,111440.0,0.20361012]
[1760564204694,0.17945266,111450.0,111440.0,0.08969012]
[1760564205059,0.17945266,111450.0,111440.0,0.10763699]
[1760564205271,0.1884059,111470.0,111440.0,0.62159699]
[1760564205471,0.1884059,111470.0,111450.0,0.89269012]
[1760564205642,0.1884059,111470.0,111460.0,0.01794365]
[1760564205847,0.21878854,111470.0,111460.0,0.22175377]
[1760564206177,0.21878854,111470.0,111460.0,0.20381012]
[1760564206760,0.21893827,111470.0,111460.0,0.20381012]
[1760564207190,0.21893827,111470.0,111460.0,0.08969012]
[1760564207468,0.21893827,111470.0,111460.0,0.22171377]
[1760564207683,0.21893827,111470.0,111460.0,0.20377012]
[1760564208245,0.21893827,111470.0,111460.0,0.25765012]
[1760564210270,0.91782445,111480.0,111460.0,0.25765012]
[1760564210474,1.28857157,111480.0,111470.0,0.08969012]
[1760564212662,1.10013425,111480.0,111470.0,0.08969012]
[1760564212857,0.55017736,111480.0,111470.0,0.08969012]
[1760564212997,0.55914757,111480.0,111470.0,0.08969012]
[1760564216774,0.55914757,111480.0,111470.0,0.20365012]
[1760564217317,0.55914757,111480.0,111470.0,0.08969012]
[1760564217533,0.55914757,111480.0,111470.0,0.20365012]
[1760564218589,0.03074712,111480.0,111470.0,0.08969012]
[1760564218799,0.17946163,111490.0,111470.0,0.22159216]
[1760564219006,0.17939004,111490.0,111470.0,0.70981919]
[1760564219214,2.030977,111490.0,111470.0,1.50981919]
[1760564219439,2.05806025,111490.0,111470.0,1.50981919]
[1760564219641,0.02708325,111490.0,111470.0,1.50981919]
[1760564219847,4.55462057,111500.0,111480.0,0.48969012]
[1760564220051,4.55462057,111500.0,111490.0,1.02162894]
[1760564220258,4.55462057,111500.0,111490.0,1.50985919]
[1760564222321,4.55462057,111500.0,111490.0,2.2754286]
[1760564222569,4.55462057,111500.0,111490.0,2.45481688]
[1760564222806,4.55462057,111500.0,111490.0,2.48186799]
[1760564226834,4.55462057,111500.0,111490.0,2.82186799]
[1760564227461,4.55462057,111500.0,111490.0,2.82486799]
[1760564227869,4.52770057,111500.0,111490.0,2.82486799]
[1760564228686,4.52770057,111500.0,111490.0,2.82786799]
[1760564229648,4.52770057,111500.0,111490.0,0.71585919]
[1760564229902,4.52770057,111500.0,111490.0,1.11585919]
[1760564230160,4.70707276,111500.0,111490.0,1.11585919]
[1760564230374,4.73308081,111500.0,111490.0,1.11585919]
[1760564230583,4.73308081,111500.0,111490.0,1.00185919]
[1760564230792,4.73308081,111500.0,111490.0,0.60961012]
[1760564231003,7.49344494,111500.0,111490.0,0.08969012]
[1760564231218,0.17940437,111480.0,111470.0,0.4]
[1760564231426,0.17940437,111480.0,111470.0,0.60365012]
[1760564232080,0.17940437,111480.0,111470.0,0.48969012]
[1760564232300,2.9397685,111480.0,111470.0,0.08969012]
[1760564232513,2.9397685,111480.0,111470.0,0.20561012]
[1760564232736,2.9397685,111480.0,111470.0,0.20361012]
[1760564232945,2.9397685,111480.0,111470.0,0.08969012]
[1760564233171,2.9397685,111480.0,111470.0,0.20361012]
[1760564233588,2.9397685,111480.0,111470.0,0.08969012]
[1760564233795,2.9397685,111480.0,111470.0,0.20361012]
[1760564234005,2.9397685,111480.0,111470.0,0.20461012]
[1760564234422,2.9397685,111480.0,111470.0,0.20361012]
[1760564234639,2.9397685,111480.0,111470.0,0.20461012]
[1760564235055,2.9397685,111480.0,111470.0,0.09069012]
[1760564235278,2.9397685,111480.0,111470.0,0.20461012]
[1760564235491,2.9397685,111480.0,111470.0,0.20457012]
[1760564237206,2.9397685,111480.0,111470.0,0.09069012]
[1760564237410,2.9397685,111480.0,111470.0,0.20457012]
[1760564238930,4.55375643,111500.0,111470.0,0.60457012]
[1760564239148,4.52775049,111500.0,111480.0,0.90763055]
[1760564239375,4.52775049,111500.0,111490.0,0.11404]
[1760564239604,4.52775049,111500.0,111490.0,0.60373012]
[1760564240704,4.52775049,111500.0,111490.0,1.28928747]
[1760564240923,4.52775049,111500.0,111490.0,1.79639483]
[1760564241138,4.52775049,111500.0,111490.0,1.79739483]
[1760564241358,4.52775049,111500.0,111490.0,2.13739483]
[1760564241785,4.52775049,111500.0,111490.0,2.13639483]
[1760564242230,4.52775049,111500.0,111490.0,2.13839483]
[1760564243307,4.52775049,111500.0,111490.0,2.16487642]
[1760564246411,4.52775049,111500.0,111490.0,1.69395134]
[1760564246651,4.52775049,111500.0,111490.0,2.16487642]
[1760564247117,4.52775049,111500.0,111490.0,1.69395134]
[1760564247363,4.52775049,111500.0,111490.0,2.16487642]
[1760564247802,4.52775049,111500.0,111490.0,2.16287642]
[1760564248026,4.52775049,111500.0,111490.0,2.22896867]
[1760564248508,4.52775049,111500.0,111490.0,1.51256306]
[1760564248763,4.52775049,111500.0,111490.0,2.38648814]
[1760564248990,4.52775049,111500.0,111490.0,2.38948814]
[1760564249203,4.52775049,111500.0,111490.0,2.56587642]
[1760564250315,4.52775049,111500.0,111490.0,2.56787642]
[1760564251242,4.52775049,111500.0,111490.0,2.63549709]
[1760564251896,4.52775049,111500.0,111490.0,2.6624347]
[1760564252583,4.52775049,111500.0,111490.0,2.6804347]
[1760564252786,4.52775049,111500.0,111490.0,2.63549709]
[1760564252987,4.52775049,111500.0,111490.0,2.63349709]
[1760564253197,4.52775049,111500.0,111490.0,2.63661709]
[1760564253601,4.52775049,111500.0,111490.0,2.69045709]
[1760564254010,4.52775049,111500.0,111490.0,2.57629709]
[1760564254216,4.52775049,111500.0,111490.0,2.69041709]
[1760564257040,5.31955449,111500.0,111490.0,2.69041709]
[1760564260528,5.31955449,111500.0,111490.0,2.57629709]
[1760564260725,5.31955449,111500.0,111490.0,2.69029709]
[1760564261895,5.31955449,111500.0,111490.0,2.85029709]
[1760564265741,5.31955449,111500.0,111490.0,2.85021709]
[1760564268395,5.31955449,111500.0,111490.0,2.8771147]
[1760564268597,5.31955449,111500.0,111490.0,2.7632347]
[1760564268802,5.31955449,111500.0,111490.0,2.8771147]
[1760564269206,5.31955449,111500.0,111490.0,2.7632347]
[1760564269407,5.31955449,111500.0,111490.0,2.8771147]
[1760564269727,5.31955449,111500.0,111490.0,2.37094563]
[1760564270716,5.31955449,111500.0,111490.0,2.25706563]
[1760564270884,5.31955449,111500.0,111490.0,2.37090563]
[1760564271137,5.31955449,111500.0,111490.0,2.41034563]
[1760564271778,5.31955449,111500.0,111490.0,2.40734563]
[1760564275363,5.09871645,111500.0,111490.0,2.40734563]
[1760564275888,5.09871645,111500.0,111490.0,2.29350563]
[1760564276091,5.09871645,111500.0,111490.0,2.40730563]
[1760564276737,5.09871645,111500.0,111490.0,2.41030563]
[1760564277467,5.09871645,111500.0,111490.0,3.18154345]
[1760564277867,5.09871645,111500.0,111490.0,3.06774345]
[1760564278102,5.09871645,111500.0,111490.0,3.18154345]
[1760564278532,5.09871645,111500.0,111490.0,3.06774345]
[1760564278721,5.09871645,111500.0,111490.0,3.18154345]
[1760564279583,5.09871645,111500.0,111490.0,3.18150345]
[1760564279783,5.09871645,111500.0,111490.0,3.06774345]
[1760564279989,5.09871645,111500.0,111490.0,3.18150345]
[1760564280403,5.09871645,111500.0,111490.0,3.06774345]
[1760564280684,5.09871645,111500.0,111490.0,3.18150345]
[1760564281593,5.09871645,111500.0,111490.0,3.57810345]
[1760564282038,5.09871645,111500.0,111490.0,3.09767154]
[1760564282259,5.09871645,111500.0,111490.0,0.57601171]
[1760564282480,5.09871645,111500.0,111490.0,1.16945429]
[1760564282726,5.09871645,111500.0,111490.0,1.62325429]
[1760564283174,5.09871645,111500.0,111490.0,1.62025429]
[1760564283393,5.09871645,111500.0,111490.0,1.50845429]
[1760564283604,5.09871645,111500.0,111490.0,1.62225429]
[1760564283820,5.09871645,111500.0,111490.0,1.65843657]
[1760564284070,5.09871645,111500.0,111490.0,1.81843657]
[1760564284940,5.09871645,111500.0,111490.0,1.70463657]
[1760564285390,5.09871645,111500.0,111490.0,2.23249087]
[1760564285826,5.09871645,111500.0,111490.0,2.11869087]
[1760564286032,5.09871645,111500.0,111490.0,2.23245087]
[1760564286690,5.09871645,111500.0,111490.0,2.11869087]
[1760564286916,5.09871645,111500.0,111490.0,2.23245087]
[1760564287368,5.09871645,111500.0,111490.0,1.71306259]
[1760564287586,5.09871645,111500.0,111490.0,2.04145087]
[1760564288455,5.09871645,111500.0,111490.0,1.92769087]
[1760564288681,5.09871645,111500.0,111490.0,2.04145087]
[1760564289596,5.09871645,111500.0,111490.0,1.21334227]
[1760564289839,5.09871645,111500.0,111490.0,1.62739657]
[1760564290911,5.09871645,111500.0,111490.0,1.51363657]
[1760564291136,5.09871645,111500.0,111490.0,1.44796829]
[1760564291354,5.09871645,111500.0,111490.0,1.62735657]
[1760564291774,5.09871645,111500.0,111490.0,1.44796829]
[1760564292205,5.09871645,111500.0,111490.0,1.62735657]
[1760564292643,5.09871645,111500.0,111490.0,1.64535657]
[1760564292861,5.09871645,111500.0,111490.0,1.62735657]
[1760564293109,5.09871645,111500.0,111490.0,1.62731657]
[1760564293330,5.09871645,111500.0,111490.0,1.51363657]
[1760564293783,5.09871645,111500.0,111490.0,1.62731657]
[1760564296218,5.09871645,111500.0,111490.0,2.04137087]
[1760564296433,5.09871645,111500.0,111490.0,2.29237087]
[1760564296636,5.09871645,111500.0,111490.0,2.29233087]
[1760564296810,5.09871645,111500.0,111490.0,2.17869087]
[1760564297016,5.09871645,111500.0,111490.0,2.29241087]
[1760564297192,5.07718371,111500.0,111490.0,2.29241087]
[1760564297400,5.07718371,111500.0,111490.0,2.17869087]
[1760564297599,5.07718371,111500.0,111490.0,2.29241087]
[1760564297782,5.07718371,111500.0,111490.0,1.89241087]
[1760564298021,5.07718371,111500.0,111490.0,1.48906601]
[1760564298221,5.07718371,111500.0,111490.0,1.60278601]
[1760564298668,5.07718371,111500.0,111490.0,1.48906601]
[1760564298828,5.07718371,111500.0,111490.0,1.63896829]
[1760564299240,5.07718371,111500.0,111490.0,1.52524829]
[1760564299443,5.07718371,111500.0,111490.0,1.63896829]
[1760564299878,5.07718371,111500.0,111490.0,1.52524829]
[1760564300086,5.07718371,111500.0,111490.0,1.63896829]
[1760564300496,5.07718371,111500.0,111490.0,1.63892829]
[1760564301511,5.07718371,111500.0,111490.0,1.63912037]
[1760564302115,5.07718371,111500.0,111490.0,1.63612037]
[1760564302677,5.07718371,111500.0,111490.0,0.88487399]
[1760564303099,5.07718371,111500.0,111490.0,0.61119399]
[1760564303301,5.07718371,111500.0,111490.0,0.72487399]
[1760564303504,5.07718371,111500.0,111490.0,1.13912037]
[1760564303709,5.07718371,111500.0,111490.0,1.02544037]